bitfinex-derivatives/quotes_ETHF0:USTF0_20250214
["timestamp","ask_amount","ask_price","bid_price","bid_amount"]
[1739493518148,1.16660894,2672.4,2672.0,1.1415]
[1739493518354,1.91488894,2672.4,2672.1,0.74835]
[1739493518749,1.16660894,2672.4,2672.0,1.1415]
[1739493519247,1.16660894,2672.4,2672.3,0.7483]
[1739493519555,0.59290894,2672.4,2672.3,0.7483]
[1739493519750,0.00560894,2672.4,2672.3,0.7483]
[1739493527246,0.00560894,2672.4,2672.2,3.95611]
[1739493527855,0.75389894,2672.4,2672.2,3.95611]
[1739493528056,0.5603,2672.3,2672.2,0.74831]
[1739493528259,0.5603,2672.3,2672.2,3.95611]
[1739493528453,0.5603,2672.3,2672.2,3.2078]
[1739493529056,1.30862,2672.3,2672.1,0.74836]
[1739493529657,0.5603,2672.3,2672.1,0.74836]
[1739493532854,0.5603,2672.3,2671.9,3.2078]
[1739493533158,0.74835,2672.2,2671.9,3.95619]
[1739493533455,0.572,2672.1,2671.9,3.9562]
[1739493534757,0.572,2672.1,2671.9,3.2078]
[1739493534957,1.34809,2672.0,2671.9,3.2078]
[1739493536251,0.74843,2671.9,2671.6,3.95628]
[1739493536452,0.5552,2671.8,2671.6,3.95628]
[1739493538063,0.5552,2671.8,2671.7,0.74847]
[1739493541965,0.5997,2672.0,2671.9,0.74841]
[1739493542567,1.3481,2672.0,2671.8,0.74843]
[1739493542766,0.5997,2672.0,2671.7,1.1763]
[1739493543064,0.5997,2672.0,2671.9,3.95621]
[1739493548675,0.572,2672.1,2672.0,0.74839]
[1739493558078,0.5591,2672.3,2672.2,0.74833]
[1739493558277,1.1528,2672.3,2672.2,3.95613]
[1739493559473,1.1528,2672.3,2672.2,3.2078]
[1739493559678,1.9011,2672.3,2672.2,3.2078]
[1739493560068,1.9011,2672.3,2672.2,3.95613]
[1739493560274,1.1528,2672.3,2672.2,3.95613]
[1739493560776,1.9011,2672.3,2672.2,3.2078]
[1739493561277,1.9011,2672.3,2672.2,3.95613]
[1739493561479,1.1528,2672.3,2672.2,3.95613]
[1739493567383,0.00560894,2672.4,2672.3,0.7483]
[1739493571086,0.00560894,2672.4,2672.3,7.79393254]
[1739493575999,0.75387894,2672.4,2672.3,7.04563254]
[1739493576891,0.75387894,2672.4,2672.1,0.74835]
[1739493577495,0.00560894,2672.4,2672.2,0.74833]
[1739493577993,0.00560894,2672.4,2672.3,0.7483]
[1739493578790,0.00560894,2672.4,2671.9,3.2078]
[1739493578990,0.75389894,2672.4,2672.1,0.74835]
[1739493580195,3.30508475,2672.2,2671.6,3.2078]
[1739493580399,3.30508475,2671.9,2671.6,3.2078]
[1739493580692,1.1482,2671.8,2671.3,3.2078]
[1739493580889,1.616,2671.7,2671.3,3.2078]
[1739493581088,0.74854,2671.5,2671.3,3.2078]
[1739493581297,0.74853,2671.5,2671.3,3.2078]
[1739493582990,3.30508475,2671.6,2671.3,3.2078]
[1739493583191,0.74855,2671.4,2671.3,3.2078]
[1739493583403,0.74854,2671.5,2671.3,3.2078]
[1739493583592,3.30508475,2671.6,2671.3,3.2078]
[1739493583796,3.30508475,2671.6,2671.3,3.95638]
[1739493583994,2.9113,2671.7,2671.3,3.95638]
[1739493584599,0.74851,2671.6,2671.3,3.2078]
[1739493585194,2.1628,2671.7,2671.3,3.2078]
[1739493585495,0.74853,2671.5,2671.3,3.2078]
[1739493587401,2.1628,2671.7,2671.3,3.2078]
[1739493587598,0.74855,2671.4,2671.3,3.2078]
[1739493587801,0.74855,2671.5,2671.3,3.2078]
[1739493590303,0.74855,2671.4,2671.3,3.2078]
[1739493592794,0.74861,2671.2,2670.9,3.95648]
[1739493592995,0.5577,2671.1,2670.9,3.95648]
[1739493593595,0.5577,2671.1,2671.0,0.74867]
[1739493594204,0.5577,2671.1,2670.9,3.95648]
[1739493594697,0.5577,2671.1,2670.9,3.2078]
[1739493595203,0.5577,2671.1,2670.9,3.95648]
[1739493595701,1.30634,2671.1,2670.9,3.95648]
[1739493595890,0.5577,2671.1,2670.9,3.95648]
[1739493596995,1.30635,2671.1,2670.9,3.2078]
[1739493597198,0.5577,2671.1,2670.9,3.2078]
[1739493597698,0.74867,2671.0,2670.9,3.2078]
[1739493598103,4.05375475,2671.0,2670.9,3.2078]
[1739493598500,0.74876,2670.7,2670.6,3.2078]
[1739493598705,2.36476,2670.7,2670.6,3.2078]
[1739493599300,0.74885,2670.4,2670.2,3.7506]
[1739493599500,0.74885,2670.4,2670.2,3.2078]
[1739493599501,0.5469,2670.3,2670.2,3.2078]
[1739493599701,1.1191,2670.3,2670.2,3.2078]
[1739493600205,1.1191,2670.3,2670.2,3.95669]
[1739493600900,0.5469,2670.3,2670.2,3.95669]
[1739493601105,1.9221,2670.6,2670.2,3.95669]
[1739493601399,1.7202,2670.6,2670.2,3.2078]
[1739493601604,2.46898,2670.6,2670.3,0.74886]
[1739493602399,1.7202,2670.6,2670.2,3.2078]
[1739493602600,1.7202,2670.6,2670.3,0.74885]
[1739493603105,1.7202,2670.6,2670.2,3.2078]
[1739493603305,1.7202,2670.6,2670.3,0.74885]
[1739493603703,0.5469,2670.6,2670.2,3.2078]
[1739493604001,0.5476,2670.8,2670.2,3.2078]
[1739493604200,1.617,2670.7,2670.6,0.74878]
[1739493604402,1.617,2670.7,2670.6,1.34068]
[1739493604602,1.617,2670.7,2670.6,1.89358]
[1739493605809,1.617,2670.7,2670.6,1.1448]
[1739493606109,1.617,2670.7,2670.5,3.95661]
[1739493606804,1.617,2670.7,2670.6,0.74878]
[1739493607003,1.617,2670.7,2670.6,1.32078]
[1739493607808,2.1656,2670.7,2670.6,1.32078]
[1739493608710,1.617,2670.7,2670.6,1.32078]
[1739493611216,0.00560894,2670.9,2670.8,0.74872]
[1739493611515,0.00560894,2670.9,2670.8,3.95652]
[1739493620721,0.00321599,2670.9,2670.8,3.95652]
[1739493637035,0.5809,2671.3,2670.8,9.95652]
[1739493637234,0.5809,2671.3,2671.2,7.26149475]
[1739493638642,0.5509,2671.4,2671.3,0.74858]
[1739493638845,0.5473,2671.4,2671.3,0.74858]
[1739493639037,0.59450894,2671.5,2671.4,0.74855]
[1739493639232,0.59450894,2671.5,2671.4,4.05363475]
[1739493640039,0.00560894,2671.5,2671.4,4.05363475]
[1739493641848,0.74832,2672.3,2671.4,4.05363475]
[1739493641849,1.616,2672.7,2672.5,0.74823]
[1739493642049,0.5706,2672.6,2672.5,0.74823]
[1739493643247,1.1482,2672.6,2672.5,0.74823]
[1739493645149,1.7178,2672.6,2672.5,0.74823]
[1739493648752,1.1402,2672.6,2672.5,0.74823]
[1739493650361,0.00560894,2672.8,2672.7,0.74819]
[1739493650651,0.00560894,2672.8,2672.7,7.26107475]
[1739493652648,1.615,2673.7,2672.7,6.51288475]
[1739493652854,1.1894,2673.5,2673.3,0.748]
[1739493654151,1.1894,2673.5,2673.2,0.74804]
[1739493655057,1.93737,2673.5,2673.2,0.74802]
[1739493655354,1.1894,2673.5,2673.3,0.74801]
[1739493655554,1.93738,2673.5,2673.2,0.74803]
[1739493655957,1.93738,2673.5,2673.3,0.74802]
[1739493656254,1.1894,2673.5,2673.3,0.74802]
[1739493656454,1.93737,2673.5,2673.3,0.74802]
[1739493657055,1.93737,2673.5,2673.1,3.2078]
[1739493657256,1.1894,2673.5,2673.1,3.2078]
[1739493657455,1.93739,2673.5,2673.2,0.74804]
[1739493657657,0.74801,2673.4,2673.2,0.74804]
[1739493658259,1.1894,2673.5,2673.4,0.74799]
[1739493658455,1.1894,2673.5,2673.4,3.95579]
[1739493662658,0.00560894,2673.7,2673.6,0.74794]
[1739493662857,0.00560894,2673.7,2673.6,4.05302475]
[1739493675169,0.00560894,2673.7,2673.6,4.61062475]
[1739493683565,0.00560894,2673.7,2673.6,4.05302475]
[1739493687279,0.00560894,2673.7,2673.5,0.74797]
[1739493687577,0.75353894,2673.7,2673.4,3.95578]
[1739493688177,0.00560894,2673.7,2673.5,0.74796]
[1739493688376,0.75352894,2673.7,2673.4,3.95578]
[1739493688672,0.00560894,2673.7,2673.4,3.2078]
[1739493688880,0.00560894,2673.7,2673.4,3.95578]
[1739493689281,0.75351894,2673.7,2673.4,3.95578]
[1739493689481,0.00560894,2673.7,2673.5,0.74795]
[1739493690277,0.00560894,2673.7,2673.5,0.74797]
[1739493690578,0.00560894,2673.7,2673.6,0.74794]
[1739493693381,0.46244812,2674.0,2673.9,0.74785]
[1739493693572,1.1696,2674.2,2673.9,3.2078]
[1739493693777,1.1696,2674.2,2674.1,0.7478]
[1739493696374,1.1696,2674.2,2673.9,3.21340894]
[1739493696580,1.1696,2674.2,2674.1,0.7478]
[1739493697487,1.1696,2674.2,2673.9,3.96124894]
[1739493697686,1.1696,2674.2,2673.9,3.21340894]
[1739493697981,0.00277077,2674.1,2674.0,0.74782]
[1739493698784,0.00277077,2674.1,2674.0,2.90845254]
[1739493701989,0.00277077,2674.1,2674.0,2.16063254]
[1739493702688,0.00277077,2674.1,2674.0,2.90846254]
[1739493702889,0.00277077,2674.1,2674.0,2.16063254]
[1739493703089,0.00277077,2674.1,2674.0,2.90846254]
[1739493703692,0.75057077,2674.1,2674.0,2.16063254]
[1739493704691,0.74783,2674.0,2673.9,0.00560894]
[1739493706488,1.20993054,2674.0,2673.9,0.00560894]
[1739493710599,1.81268112,2674.0,2673.9,0.00560894]
[1739493711197,0.74798,2673.5,2673.3,3.95581]
[1739493711392,1.91809,2673.4,2673.3,3.2078]
[1739493711590,0.74807,2673.2,2673.0,4.50159]
[1739493711790,0.74806,2673.2,2673.0,3.2078]
[1739493711996,0.74808,2673.1,2673.0,3.2078]
[1739493713099,1.21018054,2673.1,2673.0,3.2078]
[1739493714599,1.03270054,2673.1,2672.8,0.00560894]
[1739493715003,0.74812,2673.0,2672.8,0.00560894]
[1739493715194,1.89163,2672.9,2672.8,0.00560894]
[1739493715395,6.81071475,2672.9,2672.8,0.00560894]
[1739493715797,13.27281529,2672.9,2672.8,0.00560894]
[1739493716503,12.52468529,2672.9,2672.3,2.16063254]
[1739493716800,3.30508475,2672.6,2672.2,3.2078]
[1739493717093,2.93286,2672.5,2672.2,3.2078]
[1739493717294,1.1435,2672.4,2672.2,3.2078]
[1739493717699,0.74835,2672.2,2672.0,0.00560894]
[1739493717894,1.1435,2672.4,2672.0,0.00560894]
[1739493718099,0.74836,2672.1,2672.0,0.00560894]
[1739493718292,1.614,2672.1,2672.0,0.00560894]
[1739493720603,1.614,2672.1,2672.0,0.75399894]
[1739493721708,2.36236,2672.1,2672.0,0.00560894]
[1739493721909,8.36236,2672.1,2672.0,0.00560894]
[1739493722095,0.74846,2671.8,2671.3,3.2078]
[1739493722408,3.3211,2671.7,2671.6,0.7485]
[1739493723299,3.3211,2671.7,2671.5,0.74851]
[1739493723806,3.3211,2671.7,2671.6,0.7485]
[1739493724805,3.3211,2671.7,2671.4,0.00560894]
[1739493725004,3.3211,2671.7,2671.5,0.74853]
[1739493725506,3.3211,2671.7,2671.4,0.00560894]
[1739493726108,3.3211,2671.7,2671.5,0.74851]
[1739493726603,3.3211,2671.7,2671.4,0.00560894]
[1739493726808,3.3211,2671.7,2671.6,0.7485]
[1739493727309,3.3211,2671.7,2671.5,0.74851]
[1739493727505,3.3211,2671.7,2671.6,0.7485]
[1739493730405,4.06957,2671.7,2671.4,0.00560894]
[1739493730605,3.3211,2671.7,2671.4,0.00560894]
[1739493730908,4.06959,2671.7,2671.4,3.96194894]
[1739493731309,4.06959,2671.7,2671.4,3.21340894]
[1739493731510,3.3211,2671.7,2671.4,3.96195894]
[1739493731711,3.3211,2671.7,2671.4,3.21340894]
[1739493732013,0.74853,2671.5,2671.4,0.00560894]
[1739493732510,10.05361475,2671.5,2671.4,0.00560894]
[1739493732811,0.74871,2670.9,2670.6,4.50347]
[1739493733114,2.2015,2670.8,2670.6,3.7547]
[1739493733312,2.2015,2670.8,2670.6,3.2078]
[1739493733512,6.07868475,2670.8,2670.4,0.74882]
[1739493733714,6.82743475,2670.8,2670.4,0.74882]
[1739493733907,0.74876,2670.7,2670.3,3.95665]
[1739493734207,6.07868475,2670.8,2670.3,3.2078]
[1739493734409,6.82742475,2670.8,2670.4,0.74883]
[1739493734807,0.74877,2670.7,2670.3,3.95665]
[1739493735008,0.74883,2670.4,2670.3,3.2078]
[1739493735216,1.615,2670.4,2670.0,3.2078]
[1739493735516,0.74888,2670.3,2670.0,3.2078]
[1739493735817,1.33538,2670.3,2670.0,3.2078]
[1739493736007,1.93028,2670.3,2670.0,3.2078]
[1739493736414,1.1814,2670.3,2670.0,3.95674]
[1739493737614,1.1814,2670.3,2670.2,0.74889]
[1739493737815,1.615,2670.3,2670.2,0.74889]
[1739493738207,1.615,2670.4,2670.0,3.2078]
[1739493738412,1.615,2670.4,2670.3,3.95666]
[1739493740615,1.1663,2670.7,2670.5,0.7488]
[1739493740816,1.615,2670.6,2670.5,0.7488]
[1739493741014,1.615,2670.6,2670.4,0.74881]
[1739493741215,1.615,2670.6,2670.3,3.2078]
[1739493741416,1.615,2670.6,2670.5,0.74881]
[1739493742317,1.615,2670.6,2670.4,0.74882]
[1739493743721,1.615,2670.6,2670.3,3.2078]
[1739493744214,2.36379,2670.6,2670.3,3.95665]
[1739493744619,1.615,2670.6,2670.3,3.2078]
[1739493744920,2.36379,2670.6,2670.3,3.95666]
[1739493745418,1.615,2670.6,2670.4,0.74881]
[1739493746117,1.615,2670.6,2670.3,3.2078]
[1739493746307,1.615,2670.6,2670.5,0.74881]
[1739493747616,1.91506,2670.7,2670.4,0.5799]
[1739493747617,1.1663,2670.7,2670.4,0.5799]
[1739493747920,1.615,2670.6,2670.5,0.74881]
[1739493748314,1.615,2670.6,2670.4,1.91992]
[1739493748818,2.36379,2670.6,2670.4,1.91992]
[1739493751022,0.74881,2670.5,2670.4,1.1711]
[1739493751323,2.36379,2670.6,2670.4,1.91993]
[1739493751623,1.615,2670.6,2670.4,1.1711]
[1739493752315,1.615,2670.6,2670.5,0.74881]
[1739493752716,2.36378,2670.6,2670.5,0.74881]
[1739493752915,2.36378,2670.6,2670.4,1.91991]
[1739493753117,2.36379,2670.6,2670.4,1.91993]
[1739493753425,0.74879,2670.6,2670.4,1.91991]
[1739493753624,2.7813,2670.7,2670.6,0.74878]
[1739493753826,2.7813,2670.7,2670.4,1.1711]
[1739493754226,0.74883,2670.4,2670.3,3.2078]
[1739493754727,2.7813,2670.7,2670.1,0.5596]
[1739493754921,0.74889,2670.2,2670.1,0.5596]
[1739493755321,2.191,2670.3,2670.0,3.2078]
[1739493755619,1.29842,2670.1,2670.0,3.2078]
[1739493758925,0.5495,2670.1,2670.0,3.2078]
[1739493759125,1.29842,2670.1,2670.0,3.2078]
[1739493759431,0.5495,2670.1,2670.0,3.2078]
[1739493759823,0.5495,2670.1,2670.0,3.95675]
[1739493762527,0.576,2670.3,2670.0,3.2078]
[1739493762723,1.616,2670.3,2670.2,0.74889]
[1739493763132,1.616,2670.3,2670.1,1.1396]
[1739493763133,1.616,2670.4,2670.3,0.74886]
[1739493763338,1.616,2670.4,2670.3,3.95666]
[1739493764429,1.616,2670.4,2670.3,3.2078]
[1739493764835,1.616,2670.4,2670.3,3.95666]
[1739493767930,2.36483,2670.4,2670.3,3.2078]
[1739493768132,2.93913,2670.4,2670.3,3.2078]
[1739493768734,2.75651285,2670.4,2669.9,4.3203]
[1739493768939,0.74892,2670.2,2669.9,5.06926]
[1739493769135,0.5898,2670.1,2669.9,5.06926]
[1739493769334,1.33873,2670.1,2669.9,3.95676]
[1739493769536,0.5513,2670.0,2669.9,3.95676]
[1739493769735,0.5513,2670.0,2669.9,3.2078]
[1739493769935,0.5513,2670.0,2669.9,3.95677]
[1739493772040,2.1663,2670.0,2669.9,3.95677]
[1739493774043,2.1663,2670.0,2669.9,3.2078]
[1739493774245,2.91525,2670.0,2669.9,3.2078]
[1739493774853,1.615,2670.0,2669.9,3.95677]
[1739493775053,2.205,2670.0,2669.9,3.2078]
[1739493775647,2.95395,2670.0,2669.9,3.2078]
[1739493776453,2.205,2670.0,2669.9,3.2078]
[1739493777249,2.95395,2670.0,2669.9,3.2078]
[1739493777748,0.5698,2670.1,2669.9,3.2078]
[1739493777944,2.1858,2670.1,2670.0,0.74895]
[1739493778144,2.1858,2670.1,2670.0,1.34405]
[1739493778353,2.1858,2670.1,2670.0,0.5951]
[1739493778547,2.1858,2670.1,2670.0,1.34405]
[1739493780547,1.30647,2670.3,2670.0,1.34405]
[1739493780548,1.616,2670.2,2670.1,0.74889]
[1739493783652,1.616,2670.2,2670.0,1.90133]
[1739493783855,1.616,2670.2,2670.0,1.90132]
[1739493784246,1.31547906,2670.4,2670.1,0.74892]
[1739493784445,1.31547906,2670.4,2670.0,1.1524]
[1739493784446,2.18162906,2670.4,2670.3,0.74886]
[1739493784648,0.56662906,2670.4,2670.3,0.74886]
[1739493784956,1.615,2670.6,2670.5,0.74881]
[1739493785150,2.45955906,2670.8,2670.5,3.95661]
[1739493785351,0.56662906,2670.8,2670.7,0.74875]
[1739493785751,0.00560894,2670.9,2670.6,1.11]
[1739493786058,0.00560894,2670.9,2670.8,3.95652]
[1739493788550,0.00560894,2670.9,2670.8,3.2078]
[1739493789858,0.00560894,2670.9,2670.8,3.95652]
[1739493790459,0.00560894,2670.9,2670.8,3.2078]
[1739493790857,0.00560894,2670.9,2670.8,3.95652]
[1739493791058,0.00560894,2670.9,2670.8,3.2078]
[1739493791558,0.00560894,2670.9,2670.8,3.95652]
[1739493802069,0.58590894,2670.9,2670.8,3.95652]
[1739493803067,0.00560894,2670.9,2670.8,3.95652]
[1739493808164,0.5805,2671.3,2671.2,0.74861]
[1739493808370,0.5805,2671.3,2671.2,3.95641]
[1739493811869,0.5805,2671.3,2671.2,3.2078]
[1739493812173,1.32908,2671.3,2671.2,3.2078]
[1739493812472,0.5805,2671.3,2671.2,3.2078]
[1739493812660,1.32908,2671.3,2671.2,3.2078]
[1739493813566,0.5805,2671.3,2671.2,3.95641]
[1739493814573,0.00560894,2671.5,2671.2,3.2078]
[1739493814867,0.00560894,2671.5,2671.4,0.74855]
[1739493815074,0.75413894,2671.5,2671.3,0.74857]
[1739493815466,0.75413894,2671.5,2671.2,3.2078]
[1739493815662,0.75413894,2671.5,2671.2,3.95639]
[1739493815867,0.74857,2671.4,2671.2,3.95639]
[1739493816169,0.75414894,2671.5,2671.3,0.74858]
[1739493816874,0.75414894,2671.5,2671.2,3.2078]
[1739493817075,0.00560894,2671.5,2671.4,0.74855]
[1739493819970,0.00560894,2671.5,2671.2,3.2078]
[1739493820278,0.00560894,2671.5,2671.2,3.95639]
[1739493820279,0.74857,2671.4,2671.2,3.95639]
[1739493820576,0.00560894,2671.5,2671.2,3.2078]
[1739493820770,0.74857,2671.4,2671.2,3.9564]
[1739493821173,2.36258,2671.3,2671.2,3.2078]
[1739493821879,4.8218,2671.3,2671.0,0.00560894]
[1739493822080,0.74864,2671.1,2671.0,0.00560894]
[1739493822567,1.89834,2671.1,2671.0,0.00560894]
[1739493828081,0.56658207,2671.2,2671.1,0.74864]
[1739493828286,0.56658207,2671.2,2671.1,1.89284]
[1739493828583,0.00560894,2671.5,2671.4,0.74855]
[1739493828882,0.00560894,2671.5,2671.4,3.95635]
[1739493830284,0.56658207,2671.9,2671.4,9.2078]
[1739493830483,0.56658207,2671.9,2671.8,3.95624]
[1739493831078,1.90516,2672.1,2671.8,3.2078]
[1739493831888,0.74839,2672.0,2671.8,3.2078]
[1739493832087,0.5713,2671.9,2671.8,3.2078]
[1739493833782,0.5713,2671.9,2671.7,0.74846]
[1739493833991,0.5713,2671.9,2671.8,3.2078]
[1739493834693,0.5713,2671.9,2671.8,3.95624]
[1739493834986,0.5713,2671.9,2671.8,3.2078]
[1739493835387,0.5713,2671.9,2671.8,3.95624]
[1739493842488,1.72265671,2672.1,2671.8,3.2078]
[1739493842886,0.74839,2672.0,2671.8,3.95623]
[1739493843082,0.74841,2671.9,2671.8,3.2078]
[1739493844091,1.72265671,2672.1,2671.8,3.2078]
[1739493844689,0.74841,2671.9,2671.8,3.2078]
[1739493845491,2.36241,2671.9,2671.8,3.2078]
[1739493845697,5.66749475,2671.9,2671.8,3.2078]
[1739493846393,6.23304944,2671.9,2671.8,3.2078]
[1739493846589,6.29387099,2671.9,2671.8,3.2078]
[1739493848593,12.05834574,2671.9,2671.0,0.00560894]
[1739493848798,4.05372475,2671.1,2671.0,0.00560894]
[1739493849099,5.66772475,2671.1,2671.0,0.00560894]
[1739493849292,0.74883,2670.5,2670.3,1.0994]
[1739493849594,0.74883,2670.4,2670.3,0.5518]
[1739493849787,4.91908475,2670.7,2670.2,3.2078]
[1739493849993,4.05392475,2670.4,2670.2,3.2078]
[1739493850196,3.30508475,2670.4,2670.2,3.2078]
[1739493850896,0.74886,2670.3,2670.2,3.2078]
[1739493852695,2.36286,2670.3,2670.2,3.2078]
[1739493855703,1.614,2670.3,2670.2,3.2078]
[1739493857305,1.614,2670.3,2670.0,0.00560894]
[1739493857703,0.74891,2670.2,2670.0,0.00560894]
[1739493858108,6.51288475,2670.4,2670.0,0.00560894]
[1739493858306,1.614,2670.2,2670.1,0.74892]
[1739493858604,4.05393475,2670.4,2670.1,0.74892]
[1739493858796,1.614,2670.3,2670.1,0.74892]
[1739493858999,1.614,2670.3,2670.0,0.00560894]
[1739493859198,1.614,2670.3,2670.2,0.74889]
[1739493859401,4.05391475,2670.4,2670.1,0.74891]
[1739493859600,1.614,2670.3,2670.1,0.74891]
[1739493859900,1.614,2670.2,2670.1,0.74891]
[1739493861509,3.30508475,2670.4,2670.0,0.00560894]
[1739493861705,4.05392475,2670.4,2670.2,0.74887]
[1739493862309,0.74886,2670.3,2670.1,0.74892]
[1739493862509,0.74892,2670.1,2670.0,0.00560894]
[1739493862900,3.30508475,2670.4,2670.0,0.00560894]
[1739493863101,0.74892,2670.1,2670.0,0.00560894]
[1739493864410,2.36392,2670.1,2670.0,0.00560894]
[1739493866405,1.615,2670.1,2670.0,0.00560894]
[1739493866714,2.36392,2670.1,2670.0,0.00560894]
[1739493870610,5.66900475,2670.1,2670.0,0.00560894]
[1739493872908,8.87680475,2670.1,2670.0,0.00560894]
[1739493873616,5.66900475,2670.1,2670.0,0.00560894]
[1739493873816,8.87680475,2670.1,2670.0,0.00560894]
[1739493875718,9.44144887,2670.1,2670.0,0.00560894]
[1739493876212,0.74909,2669.5,2669.4,3.7722]
[1739493877319,2.36409,2669.6,2669.4,3.7722]
[1739493878214,1.615,2669.6,2669.5,0.74909]
[1739493878811,1.7197,2670.0,2669.4,3.7722]
[1739493879008,0.749,2669.8,2669.4,3.7722]
[1739493879212,0.749,2669.8,2669.5,0.74907]
[1739493879823,0.749,2669.8,2669.5,0.74909]
[1739493880521,0.749,2669.8,2669.4,3.7722]
[1739493880710,1.615,2669.9,2669.5,0.74909]
[1739493880916,0.74904,2669.7,2669.5,0.74909]
[1739493881215,0.74907,2669.6,2669.4,3.7722]
[1739493881912,0.74902,2669.8,2669.6,0.74905]
[1739493882915,0.749,2669.8,2669.4,3.7722]
[1739493883319,0.749,2669.8,2669.6,0.74905]
[1739493883514,2.36399,2669.9,2669.6,0.74905]
[1739493883717,2.36399,2669.9,2669.4,3.7722]
[1739493884022,2.36399,2669.9,2669.7,0.74902]
[1739493885020,1.7197,2670.0,2669.4,3.7722]
[1739493885213,1.615,2669.9,2669.8,0.74899]
[1739493885522,1.615,2669.9,2669.7,0.74901]
[1739493886023,2.36398,2669.9,2669.7,0.74901]
[1739493886714,1.615,2669.9,2669.4,3.7722]
[1739493887115,2.36399,2669.9,2669.7,0.74903]
[1739493889326,1.615,2669.9,2669.8,0.749]
[1739493891134,0.56651233,2670.0,2669.9,0.74897]
[1739493891340,2.18151233,2670.0,2669.9,0.74897]
[1739493891639,1.615,2670.0,2669.9,0.74897]
[1739493892240,1.615,2670.0,2669.7,3.2078]
[1739493892440,1.615,2670.0,2669.9,0.74897]
[1739493893139,0.5815,2670.1,2670.0,0.74895]
[1739493893339,2.1965,2670.1,2670.0,0.74895]
[1739493893540,1.615,2670.1,2670.0,3.2078]
[1739493893742,1.615,2670.1,2670.0,3.95675]
[1739493894240,1.76201233,2670.3,2670.0,3.2078]
[1739493894433,3.37701233,2670.3,2670.2,0.74889]
[1739493894839,1.76201233,2670.3,2670.2,0.74889]
[1739493895035,3.37701233,2670.3,2670.2,0.74889]
[1739493895941,4.12588233,2670.3,2670.1,0.74891]
[1739493897035,3.37701233,2670.3,2670.2,0.74889]
[1739493897235,3.37601233,2670.3,2670.2,0.74889]
[1739493898843,2.8095,2670.3,2670.2,0.74889]
[1739493901043,1.1955,2670.3,2670.2,0.74889]
[1739493901544,1.1955,2670.3,2670.0,3.2078]
[1739493901732,1.1955,2670.3,2670.2,0.74889]
[1739493902732,0.5815,2670.5,2670.2,0.74889]
[1739493902939,1.1721,2670.5,2670.4,0.74883]
[1739493903141,2.7861,2670.5,2670.4,0.74883]
[1739493904239,3.53492,2670.5,2670.3,0.74885]
[1739493904547,2.7861,2670.5,2670.2,0.582]
[1739493904745,2.7861,2670.5,2670.4,0.74883]
[1739493907746,3.53491,2670.5,2670.4,0.74883]
[1739493907942,3.53491,2670.5,2670.2,0.582]
[1739493908244,2.7861,2670.5,2670.3,0.74885]
[1739493908740,2.7861,2670.5,2670.4,0.74883]
[1739493908947,2.7861,2670.5,2670.3,0.74884]
[1739493909142,3.53491,2670.5,2670.2,0.582]
[1739493909840,3.53491,2670.5,2670.3,0.74886]
[1739493910039,3.53491,2670.5,2670.4,0.74883]
[1739493910941,3.53491,2670.5,2670.3,0.74885]
[1739493911142,3.30508475,2670.4,2670.0,3.2078]
[1739493911344,0.7489,2670.2,2669.9,0.74895]
[1739493911650,5.9939,2670.5,2669.7,3.2078]
[1739493911651,0.74895,2670.0,2669.8,0.74899]
[1739493911851,1.7121,2669.9,2669.7,3.95682]
[1739493912150,4.05411475,2669.8,2669.4,0.7491]
[1739493912347,4.05411475,2669.8,2669.5,0.74908]
[1739493912544,0.74903,2669.7,2669.4,0.7491]
[1739493913253,4.05410475,2669.8,2669.5,0.74909]
[1739493914050,0.56545767,2669.7,2669.5,0.74909]
[1739493914452,1.31450767,2669.7,2669.3,3.2078]
[1739493914745,0.56545767,2669.7,2669.3,3.2078]
[1739493914947,1.614,2669.6,2669.3,3.2078]
[1739493915147,2.36306,2669.6,2669.3,3.2078]
[1739493915452,0.5925,2669.5,2669.3,3.2078]
[1739493915655,1.1394,2669.4,2669.3,3.2078]
[1739493916645,1.1394,2669.4,2669.1,0.74918]
[1739493917140,1.1394,2669.4,2669.2,0.74917]
[1739493918355,1.1394,2669.4,2669.3,0.74914]
[1739493918953,0.5517,2669.4,2669.3,0.74914]
[1739493919446,0.56465298,2669.7,2669.3,3.2078]
[1739493919641,0.56465298,2669.8,2669.4,0.573]
[1739493919845,0.56465298,2669.8,2669.7,0.74903]
[1739493920344,1.7514,2670.0,2669.7,0.74903]
[1739493920943,1.7514,2670.0,2669.6,0.74906]
[1739493921151,1.7514,2670.0,2669.7,0.74902]
[1739493921345,2.50035,2670.0,2669.6,0.74904]
[1739493921545,1.7514,2670.0,2669.4,0.573]
[1739493921741,1.7514,2670.0,2669.8,0.74898]
[1739493922156,1.614,2669.9,2669.8,0.74898]
[1739493922453,1.614,2669.9,2669.6,3.2078]
[1739493922654,1.614,2669.9,2669.6,3.95685]
[1739493922843,2.36298,2669.9,2669.6,3.95685]
[1739493923043,2.36298,2669.9,2669.6,0.74905]
[1739493923044,1.614,2669.9,2669.6,0.74905]
[1739493923246,1.614,2669.9,2669.8,0.749]
[1739493923446,1.614,2669.9,2669.4,0.573]
[1739493923746,2.36298,2669.9,2669.5,0.74907]
[1739493923946,2.36298,2669.9,2669.6,0.74905]
[1739493924352,0.74904,2669.7,2669.4,0.74911]
[1739493924652,4.05411475,2669.8,2669.4,0.74911]
[1739493924854,3.30508475,2669.8,2669.3,3.2078]
[1739493925050,3.30508475,2669.8,2669.7,0.74903]
[1739493925243,4.9592,2670.0,2669.3,3.2078]
[1739493925448,4.9592,2670.0,2669.1,2.4464]